fUST/lending_fUST_20251231
["ID","MTS","AMOUNT","RATE_DAILY","PERIOD"]
[400152694,1767157847950,-179.55824252,0.0002,2]
[400152695,1767157847960,-2000.0,0.0002,7]
[400152696,1767157847969,-541.62434755,0.00020002,2]
[400152697,1767157847979,-5630.0,0.00020019,2]
[400152698,1767157847995,-5630.0,0.00020029,2]
[400152699,1767157848004,-454.36370906,0.00020034,4]
[400152700,1767157848014,-166.0,0.00020066,2]
[400152701,1767157848023,-166.0,0.00020066,2]
[400152702,1767157848032,-335.0,0.00020066,2]
[400152703,1767157848042,-166.0,0.00020066,2]
[400152704,1767157848051,-335.0,0.00020066,2]
[400152705,1767157848060,-172.0,0.00020066,2]
[400152706,1767157848069,-335.0,0.00020066,2]
[400152707,1767157848078,-335.0,0.00020066,2]
[400152708,1767157848087,-335.0,0.00020066,2]
[400152709,1767157848097,-161.5212068,0.00020066,2]
[400152710,1767157848105,-335.0,0.00020066,2]
[400152711,1767157848114,-335.0,0.00020066,2]
[400152712,1767157848124,-335.0,0.00020066,2]
[400152713,1767157848133,-335.0,0.00020066,2]
[400152714,1767157848146,-335.0,0.00020066,2]
[400152715,1767157848155,-335.0,0.00020066,2]
[400152716,1767157848164,-335.0,0.00020066,2]
[400152717,1767157848277,-335.0,0.00020066,2]
[400152718,1767157848287,-335.0,0.00020066,2]
[400152719,1767157848296,-335.0,0.00020066,2]
[400152720,1767157848306,-335.0,0.00020066,2]
[400152721,1767157848315,-335.0,0.00020066,2]
[400152722,1767157848324,-310.74092834,0.00020066,2]
[400152723,1767157848334,-346.0,0.00020066,2]
[400152724,1767157848343,-346.0,0.00020066,2]
[400152725,1767157848352,-346.0,0.00020066,2]
[400152726,1767157848362,-346.0,0.00020066,2]
[400152727,1767157848371,-152.0,0.00020066,2]
[400152728,1767157848380,-202.73167458,0.00020066,2]
[400152729,1767157848390,-346.0,0.00020066,2]
[400152730,1767157848399,-346.0,0.00020066,2]
[400152731,1767157848409,-346.0,0.00020066,2]
[400152732,1767157848418,-346.0,0.00020066,2]
[400152733,1767157848427,-346.0,0.00020066,2]
[400152734,1767157848436,-346.0,0.00020066,2]
[400152735,1767157848445,-346.0,0.00020066,2]
[400152736,1767157848454,-346.0,0.00020066,2]
[400152737,1767157848463,-346.0,0.00020066,2]
[400152738,1767157848472,-346.0,0.00020066,2]
[400152739,1767157848482,-346.0,0.00020066,2]
[400152740,1767157848491,-346.0,0.00020066,2]
[400152741,1767157848500,-346.0,0.00020066,2]
[400152742,1767157848509,-346.0,0.00020066,2]
[400152743,1767157848518,-346.0,0.00020066,2]
[400152744,1767157848527,-346.0,0.00020066,2]
[400152745,1767157848536,-346.0,0.00020066,2]
[400152746,1767157848545,-346.0,0.00020066,2]
[400152747,1767157848554,-346.0,0.00020066,2]
[400152748,1767157848563,-346.0,0.00020066,2]
[400152749,1767157848573,-346.0,0.00020066,2]
[400152750,1767157848582,-346.0,0.00020066,2]
[400152751,1767157848591,-346.0,0.00020066,2]
[400152752,1767157848600,-346.0,0.00020066,2]
[400152753,1767157848610,-346.0,0.00020066,2]
[400152754,1767157848619,-346.0,0.00020066,2]
[400152755,1767157848628,-346.0,0.00020066,2]
[400152756,1767157848637,-346.0,0.00020066,2]
[400152757,1767157848646,-346.0,0.00020066,2]
[400152758,1767157848655,-346.0,0.00020066,2]
[400152759,1767157848664,-346.0,0.00020066,2]
[400152760,1767157848674,-346.0,0.00020066,2]
[400152761,1767157848683,-357.58224127,0.00020066,2]
[400152762,1767157848694,-346.0,0.00020066,2]
[400152763,1767157848703,-346.0,0.00020066,2]
[400152764,1767157848712,-152.31585058,0.00020066,2]
[400152765,1767157848721,-490.96701053,0.00020066,2]
[400152766,1767157848731,-346.0,0.00020066,2]
[400152767,1767157848740,-163.36530169,0.00020066,2]
[400152768,1767157848750,-154.8014687,0.00020066,2]
[400152769,1767157848759,-377.19488252,0.00020066,2]
[400152770,1767157848768,-376.3220282,0.0002008,2]
[400152771,1767157848777,-376.3220282,0.0002008,2]
[400152772,1767157848787,-376.3220282,0.0002008,2]
[400152773,1767157848796,-376.3220282,0.0002008,2]
[400152774,1767157848805,-380.2493696,0.0002008,2]
[400152775,1767157848815,-376.1809797,0.0002008,2]
[400152776,1767157848824,-376.3998898,0.0002008,2]
[400152777,1767157848834,-740.38982778,0.00020099,2]
[400152778,1767157848844,-776.0,0.000201,2]
[400152779,1767157848854,-426.68312997,0.00020175,5]
[400152780,1767157848863,-325.677592,0.00020175,5]
[400152781,1767157848873,-837.140147,0.00020187,2]
[400152782,1767157848882,-500.0,0.00020205,2]
[400152783,1767157848892,-1348.90832331,0.00020218,2]
[400152784,1767157848902,-454.36370906,0.00020223,4]
[400152785,1767157848911,-5888.0,0.00020241,2]
[400152786,1767157848921,-14885.98,0.000203,2]
[400152787,1767157848930,-454.36370906,0.00020412,4]
[400152788,1767157848939,-236.53722422,0.00020425,10]
[400152789,1767157848948,-1380.56,0.000205,2]
[400152790,1767157848959,-166.25,0.000205,2]
[400152791,1767157848969,-4005.954083,0.00020548,2]
[400152792,1767157848978,-401.0,0.00020588,2]
[400152793,1767157848992,-453.98526206,0.00020601,4]
[400152794,1767157849002,-767.7842514,0.00020647,2]
[400152795,1767157849011,-633.0,0.000207,2]
[400152796,1767157849020,-399.0,0.00020705,2]
[400152797,1767157849030,-5888.0,0.00020764,2]
[400152798,1767157849039,-5630.0,0.00020903,2]
[400152799,1767157849049,-2000.0,0.00021,14]
[400152800,1767157849058,-2000.0,0.00021,14]
[400152801,1767157849067,-30030.19718622,0.00021,2]
[400152802,1767157849077,-2020.94,0.00021,14]
[400152803,1767157849086,-10000.0,0.00021,5]
[400152804,1767157849096,-1041.66666667,0.00021114,2]
[400152805,1767157849106,-796.19226871,0.00021195,2]
[400152806,1767157849116,-500.0,0.00021268,2]
[400152807,1767157849126,-5447.0,0.00021347,2]
[400152808,1767157849136,-50000.0,0.000214,5]
[400152809,1767157849149,-14885.98,0.000214,2]
[400152810,1767157849158,-2000.0,0.00021429,7]
[400152811,1767157849167,-5630.0,0.00021465,2]
[400152812,1767157849176,-1003.120289,0.000215,2]
[400152813,1767157849186,-5630.0,0.0002153,2]
[400152814,1767157849195,-236.53722422,0.00021558,12]
[400152815,1767157849204,-5888.0,0.00021559,2]
[400152816,1767157849214,-162.4,0.000216,2]
[400152817,1767157849223,-7058.3227404,0.0002162,2]
[400152818,1767157849232,-4200.02066496,0.00021656,2]
[400152819,1767157849241,-186.0,0.00021692,2]
[400152820,1767157849251,-1000.0,0.000217,2]
[400152821,1767157849260,-1380.56,0.000217,2]
[400152822,1767157849270,-166.25,0.000217,2]
[400152823,1767157849280,-825.65138265,0.00021743,2]
[400152824,1767157849290,-5888.0,0.00021756,2]
[400152825,1767157849299,-1000.0,0.00021909,10]
[400152826,1767157849309,-791.0,0.00021909,10]
[400152827,1767157849318,-302.87133682,0.00021917,2]
[400152828,1767157849327,-1182.23,0.00021917,2]
[400152829,1767157849336,-388.31492034,0.00021917,2]
[400152830,1767157849346,-793.64,0.00021917,2]
[400152831,1767157849355,-224.92658771,0.00021917,2]
[400152832,1767157849365,-500.0,0.00021917,2]
[400152833,1767157849374,-277.46495324,0.00021917,2]
[400152834,1767157849384,-181.58814641,0.00021917,2]
[400152835,1767157849393,-503.00820269,0.00021917,2]
[400152836,1767157849403,-506.55449777,0.00021917,2]
[400152837,1767157849412,-500.0,0.00021917,2]
[400152838,1767157849422,-500.0,0.00021917,2]
[400152839,1767157849431,-419.55533198,0.00021917,2]
[400152840,1767157849440,-3532.14,0.00021917,2]
[400152841,1767157849449,-572.01801726,0.00021917,2]
[400152842,1767157849458,-500.0,0.00021917,2]
[400152843,1767157849467,-500.0,0.00021917,2]
[400152844,1767157849477,-181.299206,0.00021918,2]
[400152845,1767157849487,-150.0,0.00021918,2]
[400152846,1767157849496,-185.64986707,0.00021967,7]
[400152847,1767157849506,-203.05,0.00022,2]
[400152848,1767157849515,-160.73,0.00022,7]
[400152849,1767157849524,-1000.0,0.00022,2]
[400152850,1767157849534,-598.30596532,0.00022002,2]
[400152851,1767157849543,-5888.0,0.00022083,2]
[400152852,1767157849552,-190.89,0.000221,2]
[400152853,1767157849562,-752.5030079,0.00022143,2]
[400152854,1767157849571,-1182.23,0.00022191,2]
[400152855,1767157849580,-793.64,0.00022191,2]
[400152856,1767157849590,-422.18560449,0.00022191,2]
[400152857,1767157849599,-510.62079878,0.00022191,2]
[400152858,1767157849608,-518.18840294,0.00022191,2]
[400152859,1767157849618,-3532.14,0.00022191,2]
[400152860,1767157849627,-500.0,0.00022191,2]
[400152861,1767157849636,-562.74320886,0.00022191,2]
[400152862,1767157849645,-179.92802879,0.00022255,2]
[400152863,1767157849654,-160.0,0.00022259,3]
[400152864,1767157849663,-5888.0,0.00022263,2]
[400152865,1767157849672,-500.0,0.00022388,2]
[400152866,1767157849682,-1182.23,0.00022465,2]
[400152867,1767157849691,-793.64,0.00022465,2]
[400152868,1767157849700,-3532.14,0.00022465,2]
[400152869,1767157849709,-500.0,0.00022465,2]
[400152870,1767157849719,-300.0,0.00022466,2]
[400152871,1767157849728,-14885.98,0.000225,2]
[400152872,1767157849737,-5888.0,0.00022522,2]
[400152873,1767157849746,-166.61935698,0.00022548,7]
[400152874,1767157849757,-5888.0,0.0002258,2]
[400152875,1767157849767,-5888.0,0.00022615,2]
[400152876,1767157849776,-160.0,0.00022635,4]
[400152877,1767157849786,-150.186,0.00022636,2]
[400152878,1767157849795,-251.305,0.00022636,2]
[400152879,1767157849805,-150.055,0.00022636,2]
[400152880,1767157849815,-150.142,0.00022636,2]
[400152881,1767157849824,-250.0,0.00022636,2]
[400152882,1767157849834,-260.56,0.00022636,2]
[400152883,1767157849843,-151.687,0.00022636,2]
[400152884,1767157849853,-1364.0,0.00022636,2]
[400152885,1767157849864,-627.0,0.00022636,2]
[400152886,1767157849873,-2158.274,0.00022636,2]
[400152887,1767157849884,-298.0,0.00022636,2]
[400152888,1767157849894,-297.588,0.00022636,2]
[400152889,1767157849903,-416.0,0.00022636,2]
[400152890,1767157849912,-416.0,0.00022636,2]
[400152891,1767157849922,-5888.0,0.00022641,2]
[400152892,1767157849931,-236.53722422,0.00022692,13]
[400152893,1767157849940,-1808.2093343,0.00022739,2]
[400152894,1767157849949,-1182.23,0.00022739,2]
[400152895,1767157849958,-793.64,0.00022739,2]
[400152896,1767157849967,-3532.14,0.00022739,2]
[400152897,1767157849976,-472.89680193,0.00022739,2]
[400152898,1767157849986,-711603.04446346,0.0002277,2]
[400152899,1767157849994,-5888.0,0.00022822,2]
[400152900,1767157850003,-2000.0,0.00022857,7]
[400152901,1767157850012,-528.66254772,0.0002287,2]
[400152902,1767157850021,-1380.56,0.000229,14]
[400152903,1767157850030,-166.25,0.000229,7]
[400152904,1767157850039,-160.73,0.00023,7]
[400152905,1767157850047,-3000.0,0.00023,2]
[400152906,1767157850057,-1079.46224526,0.00023,2]
[400152907,1767157850067,-1041.66666667,0.00023,3]
[400152908,1767157850076,-3000.0,0.0002301,2]
[400152909,1767157850084,-160.0,0.00023011,5]
[400152910,1767157850094,-1182.23,0.00023013,2]
[400152911,1767157850103,-793.64,0.00023013,2]
[400152912,1767157850112,-3532.14,0.00023013,2]
[400152913,1767157850122,-425.96070951,0.00023014,2]
[400152914,1767157850136,-376.3220282,0.00023019,2]
[400152915,1767157850151,-376.3220282,0.00023019,2]
[400152916,1767157850160,-376.3220282,0.00023019,2]
[400152917,1767157850169,-3000.0,0.0002302,2]
[400152918,1767157850179,-3000.0,0.0002303,2]
[400152919,1767157850189,-3000.0,0.0002304,2]
[400152920,1767157850198,-3000.0,0.0002305,2]
[400152921,1767157850207,-3000.0,0.0002306,2]
[400152922,1767157850216,-3000.0,0.0002307,2]
[400152923,1767157850226,-3000.0,0.0002308,2]
[400152924,1767157850235,-5888.0,0.00023086,2]
[400152925,1767157850244,-3000.0,0.0002309,2]
[400152926,1767157850253,-3000.0,0.000231,2]
[400152927,1767157850262,-3000.0,0.0002311,2]
[400152928,1767157850271,-3000.0,0.0002312,2]
[400152929,1767157850280,-3000.0,0.0002313,2]
[400152930,1767157850290,-3000.0,0.0002314,2]
[400152931,1767157850299,-3000.0,0.0002315,2]
[400152932,1767157850308,-3000.0,0.0002316,2]
[400152933,1767157850316,-3000.0,0.0002317,2]
[400152934,1767157850326,-3000.0,0.0002318,2]
[400152935,1767157850335,-3000.0,0.0002319,2]
[400152936,1767157850344,-3000.0,0.000232,2]
[400152937,1767157850353,-3000.0,0.0002321,2]
[400152938,1767157850362,-3000.0,0.0002322,2]
[400152939,1767157850371,-3000.0,0.0002323,2]
[400152940,1767157850380,-3000.0,0.0002324,2]
[400152941,1767157850390,-3000.0,0.0002325,2]
[400152942,1767157850399,-500.0,0.00023256,7]
[400152943,1767157850410,-3000.0,0.0002326,2]
[400152944,1767157850419,-3000.0,0.0002327,2]
[400152945,1767157850429,-3000.0,0.0002328,2]
[400152946,1767157850438,-1182.23,0.00023287,2]
[400152947,1767157850447,-793.64,0.00023287,2]
[400152948,1767157850456,-3532.14,0.00023287,2]
[400152949,1767157850466,-3000.0,0.0002329,2]
[400152950,1767157850475,-209.63722448,0.00023296,2]
[400152951,1767157850485,-1348.90832331,0.00023297,2]
[400152952,1767157850495,-3000.0,0.000233,2]
[400152953,1767157850504,-3000.0,0.0002331,2]
[400152954,1767157850513,-5649.78407,0.0002332,2]
[400152955,1767157850522,-546.91207511,0.00023363,2]
[400152956,1767157850628,-271.99693596,0.00023363,2]
[400152957,1767157850638,-256.61878698,0.00023363,2]
[400152958,1767157850647,-198.22257915,0.00023363,2]
[400152959,1767157850656,-160.0,0.00023387,6]
[400152960,1767157850666,-186.0,0.00023393,2]
[400152961,1767157850675,-271.99693596,0.00023504,9]
[400152962,1767157850684,-256.61878698,0.00023504,4]
[400152963,1767157850693,-546.91207511,0.00023504,9]
[400152964,1767157850702,-5888.0,0.0002355,2]
[400152965,1767157850711,-1182.23,0.00023561,2]
[400152966,1767157850721,-793.64,0.00023561,2]
[400152967,1767157850730,-3532.14,0.00023561,2]
[400152968,1767157850739,-500.0,0.00023566,2]
[400152969,1767157850748,-192.80890415,0.00023606,2]
[400152970,1767157850757,-167.21054176,0.00023606,2]
[400152971,1767157850767,-216.97268319,0.00023606,2]
[400152972,1767157850776,-5888.0,0.00023614,2]
[400152973,1767157850785,-546.91207511,0.00023644,17]
[400152974,1767157850795,-256.61878698,0.00023644,6]
[400152975,1767157850804,-271.99693596,0.00023644,17]
[400152976,1767157850814,-161.81819591,0.00023676,2]
[400152977,1767157850823,-222.29022442,0.00023676,2]
[400152978,1767157850833,-161.14434598,0.00023676,2]
[400152979,1767157850842,-169.93936095,0.00023676,2]
[400152980,1767157850852,-14885.98,0.000237,2]
[400152981,1767157850861,-160.0,0.00023763,7]
[400152982,1767157850871,-271.99693596,0.00023785,25]
[400152983,1767157850880,-546.91207511,0.00023785,25]
[400152984,1767157850889,-256.61878698,0.00023785,8]
[400152985,1767157850899,-309.3231511,0.00023787,2]
[400152986,1767157850908,-303.3898112,0.00023787,2]
[400152987,1767157850917,-1209.4333455,0.00023787,2]
[400152988,1767157850926,-303.3898112,0.00023787,2]
[400152989,1767157850935,-162.4,0.000238,7]
[400152990,1767157850945,-269.57652258,0.00023823,2]
[400152991,1767157850954,-236.53722422,0.00023825,15]
[400152992,1767157850962,-1182.23,0.00023835,2]
[400152993,1767157850971,-793.64,0.00023835,2]
[400152994,1767157850980,-3532.14,0.00023835,2]
[400152995,1767157850989,-200.90977335,0.00023835,2]
[400152996,1767157850999,-5888.0,0.00023869,2]
[400152997,1767157851008,-192.80890415,0.0002389,17]
[400152998,1767157851017,-503.29570748,0.000239,2]
[400152999,1767157851026,-503.2957074,0.000239,2]
[400153000,1767157851035,-503.2957074,0.000239,2]
[400153001,1767157851044,-503.2957074,0.000239,2]
[400153002,1767157851053,-503.2957074,0.000239,2]
[400153003,1767157851062,-503.2957074,0.000239,2]
[400153004,1767157851071,-503.2957074,0.000239,2]
[400153005,1767157851079,-503.2957074,0.000239,2]
[400153006,1767157851088,-503.2957074,0.000239,2]
[400153007,1767157851097,-503.2957074,0.000239,2]
[400153008,1767157851106,-271.99693596,0.00023925,32]
[400153009,1767157851115,-546.91207511,0.00023925,32]
[400153010,1767157851124,-256.61878698,0.00023925,10]
[400153011,1767157851133,-222.29022442,0.00023961,17]
[400153012,1767157851144,-169.93936095,0.00023961,17]
[400153013,1767157851154,-376.3998898,0.00023978,2]
[400153014,1767157851163,-443.2968678,0.00023978,2]
[400153015,1767157851172,-376.3220282,0.00023978,2]
[400153016,1767157851180,-376.3998898,0.00023978,2]
[400153017,1767157851189,-751.1968899,0.00023978,2]
[400153018,1767157851198,-382.0543901,0.00023978,2]
[400153019,1767157851207,-376.3220282,0.00023978,2]
[400153020,1767157851216,-376.3998898,0.00023978,2]
[400153021,1767157851225,-160.73,0.00024,7]
[400153022,1767157851234,-1733.59881032,0.00024,2]
[400153023,1767157851243,-465.14283166,0.00024,2]
[400153024,1767157851252,-654.98758309,0.00024002,2]
[400153025,1767157851261,-167.21054176,0.00024004,23]
[400153026,1767157851270,-271.99693596,0.00024066,40]
[400153027,1767157851279,-546.91207511,0.00024066,40]
[400153028,1767157851288,-256.61878698,0.00024066,12]
[400153029,1767157851297,-190.89,0.000241,2]
[400153030,1767157851307,-1000.0,0.000241,10]
[400153031,1767157851315,-1000.0,0.000241,10]
[400153032,1767157851324,-1380.56,0.000241,14]
[400153033,1767157851333,-166.25,0.000241,7]
[400153034,1767157851342,-1182.23,0.00024109,2]
[400153035,1767157851351,-793.64,0.00024109,2]
[400153036,1767157851360,-3532.14,0.00024109,2]
[400153037,1767157851369,-160.0,0.00024139,8]
[400153038,1767157851379,-91463.92439064,0.00024142,2]
[400153039,1767157851388,-197.52563422,0.00024144,2]
[400153040,1767157851398,-192.80890415,0.00024174,32]
[400153041,1767157851407,-546.91207511,0.00024206,48]
[400153042,1767157851417,-271.99693596,0.00024206,48]
[400153043,1767157851426,-256.61878698,0.00024206,14]
[400153044,1767157851435,-169.93936095,0.00024246,32]
[400153045,1767157851444,-222.29022442,0.00024246,32]
[400153046,1767157851453,-2000.0,0.00024286,7]
[400153047,1767157851462,-198.22257915,0.00024347,16]
[400153048,1767157851471,-271.99693596,0.00024347,56]
[400153049,1767157851480,-256.61878698,0.00024347,16]
[400153050,1767157851489,-546.91207511,0.00024347,56]
[400153051,1767157851498,-1182.23,0.00024383,2]
[400153052,1767157851507,-793.64,0.00024383,2]
[400153053,1767157851516,-3532.14,0.00024383,2]
[400153054,1767157851526,-167.21054176,0.00024401,45]
[400153055,1767157851535,-192.80890415,0.00024458,48]
[400153056,1767157851544,-271.99693596,0.00024487,63]
[400153057,1767157851553,-256.61878698,0.00024487,18]
[400153058,1767157851562,-546.91207511,0.00024487,63]
[400153059,1767157851570,-167.3217239,0.00024493,2]
[400153060,1767157851580,-193.3325444,0.00024493,2]
[400153061,1767157851589,-193.3325444,0.00024493,2]
[400153062,1767157851598,-193.3325444,0.00024493,2]
[400153063,1767157851607,-193.3325444,0.00024493,2]
[400153064,1767157851616,-193.3325444,0.00024493,2]
[400153065,1767157851625,-193.3325444,0.00024493,2]
[400153066,1767157851634,-193.3325444,0.00024493,2]
[400153067,1767157851643,-193.3325444,0.00024493,2]
[400153068,1767157851652,-193.3325444,0.00024493,2]
[400153069,1767157851661,-193.3325444,0.00024493,2]
[400153070,1767157851670,-197.6056877,0.00024493,2]
[400153071,1767157851679,-193.3325444,0.00024493,2]
[400153072,1767157851688,-193.3325444,0.00024493,2]
[400153073,1767157851697,-193.3325444,0.00024493,2]
[400153074,1767157851707,-193.3325444,0.00024493,2]
[400153075,1767157851716,-193.3325444,0.00024493,2]
[400153076,1767157851725,-193.3325444,0.00024493,2]
[400153077,1767157851735,-193.3325444,0.00024493,2]
[400153078,1767157851744,-160.0,0.00024515,9]
[400153079,1767157851753,-169.93936095,0.0002453,48]
[400153080,1767157851763,-222.29022442,0.0002453,48]
[400153081,1767157851771,-271.99693595,0.00024593,110]
[400153082,1767157851780,-198.22257914,0.00024593,30]
[400153083,1767157851790,-216.97268319,0.000246,16]
[400153084,1767157851799,-271.99693596,0.00024628,71]
[400153085,1767157851809,-256.61878698,0.00024628,20]
[400153086,1767157851818,-546.91207511,0.00024628,71]
[400153087,1767157851827,-113958.03127805,0.0002465,2]
[400153088,1767157851836,-1182.23,0.00024657,2]
[400153089,1767157851846,-793.64,0.00024657,2]
[400153090,1767157851855,-3532.14,0.00024657,2]
[400153091,1767157851865,-151.50509252,0.00024658,2]
[400153092,1767157851874,-380.0,0.00024658,2]
[400153093,1767157851883,-161.81819591,0.00024673,16]
[400153094,1767157851893,-161.14434598,0.00024673,16]
[400153095,1767157851903,-99999.999999,0.000247,2]
[400153096,1767157851912,-192.80890415,0.00024742,63]
[400153097,1767157851922,-500.0,0.00024744,2]
[400153098,1767157851931,-161.81819591,0.00024747,30]
[400153099,1767157851941,-161.14434597,0.00024747,30]
[400153100,1767157851950,-271.99693596,0.00024769,79]
[400153101,1767157851959,-256.61878698,0.00024769,22]
[400153102,1767157851967,-546.91207511,0.00024769,79]
[400153103,1767157851977,-167.21054173,0.00024798,110]
[400153104,1767157851986,-167.21054176,0.00024799,66]
[400153105,1767157851995,-14885.98,0.000248,2]
[400153106,1767157852004,-169.93936095,0.00024815,63]
[400153107,1767157852013,-222.29022442,0.00024815,63]
[400153108,1767157852022,-297.33386874,0.00024849,30]
[400153109,1767157852031,-160.0,0.00024892,10]
[400153110,1767157852040,-441378.663147,0.000249,2]
[400153111,1767157852049,-271.99693596,0.00024909,86]
[400153112,1767157852058,-256.61878698,0.00024909,24]
[400153113,1767157852067,-546.91207511,0.00024909,86]
[400153114,1767157852076,-1182.23,0.00024931,2]
[400153115,1767157852085,-793.64,0.00024931,2]
[400153116,1767157852094,-3532.14,0.00024931,2]
[400153117,1767157852103,-236.53722422,0.00024959,16]
[400153118,1767157852113,-10390.32906121,0.00025,2]
[400153119,1767157852122,-27566.9906356,0.00025,15]
[400153120,1767157852131,-159.46232,0.00025,3]
[400153121,1767157852141,-160.73,0.00025,7]
[400153122,1767157852153,-507.3924693,0.00025,7]
[400153123,1767157852163,-184.0,0.00025,7]
[400153124,1767157852171,-166.0,0.00025,7]
[400153125,1767157852181,-167.0,0.00025,7]
[400153126,1767157852191,-1041.66666667,0.00025,7]
[400153127,1767157852200,-192.80890415,0.00025026,79]
[400153128,1767157852210,-1211.6365575,0.00025045,14]
[400153129,1767157852219,-271.99693596,0.0002505,94]
[400153130,1767157852229,-256.61878698,0.0002505,26]
[400153131,1767157852238,-546.91207511,0.0002505,94]
[400153132,1767157852247,-186.0,0.00025094,2]
[400153133,1767157852256,-169.93936095,0.000251,79]
[400153134,1767157852265,-222.29022442,0.000251,79]
[400153135,1767157852274,-256.61878698,0.0002519,28]
[400153136,1767157852284,-271.99693596,0.0002519,102]
[400153137,1767157852293,-546.91207511,0.0002519,102]
[400153138,1767157852302,-167.21054176,0.00025196,88]
[400153139,1767157852312,-579.46320172,0.000252,5]
[400153140,1767157852321,-1182.23,0.00025205,2]
[400153141,1767157852330,-793.64,0.00025205,2]
[400153142,1767157852339,-3532.14,0.00025205,2]
[400153143,1767157852349,-160.0,0.00025268,11]
[400153144,1767157852358,-1211.6365575,0.00025296,14]
[400153145,1767157852368,-190.89,0.000253,2]
[400153146,1767157852377,-1380.56,0.000253,14]
[400153147,1767157852387,-166.25,0.000253,7]
[400153148,1767157852397,-192.80890415,0.0002531,94]
[400153149,1767157852406,-256.61878698,0.00025331,30]
[400153150,1767157852416,-546.91207511,0.00025331,110]
[400153151,1767157852426,-153.0,0.0002537,2]
[400153152,1767157852435,-184.1347424,0.0002537,2]
[400153153,1767157852445,-184.1347424,0.0002537,2]
[400153154,1767157852454,-184.1347424,0.0002537,2]
[400153155,1767157852463,-184.1347424,0.0002537,2]
[400153156,1767157852472,-184.1347424,0.0002537,2]
[400153157,1767157852481,-184.1347424,0.0002537,2]
[400153158,1767157852490,-184.1347424,0.0002537,2]
[400153159,1767157852499,-184.1347424,0.0002537,2]
[400153160,1767157852509,-184.1347424,0.0002537,2]
[400153161,1767157852518,-184.1347424,0.0002537,2]
[400153162,1767157852527,-184.1347424,0.0002537,2]
[400153163,1767157852537,-184.1347424,0.0002537,2]
[400153164,1767157852546,-184.1347424,0.0002537,2]
[400153165,1767157852556,-153.0,0.0002537,2]
[400153166,1767157852565,-169.93936095,0.00025385,94]
[400153167,1767157852574,-222.29022442,0.00025385,94]
[400153168,1767157852583,-900.0,0.00025469,3]
[400153169,1767157852592,-1182.23,0.00025479,2]
[400153170,1767157852602,-793.64,0.00025479,2]
[400153171,1767157852611,-3532.14,0.00025479,2]
[400153172,1767157852621,-1000.0,0.000255,2]
[400153173,1767157852631,-1059.59173111,0.00025546,16]
[400153174,1767157852640,-1080.36507781,0.00025576,2]
[400153175,1767157852649,-216.97268319,0.00025594,30]
[400153176,1767157852659,-192.80890415,0.00025594,110]
[400153177,1767157852758,-150.0,0.00025636,2]
[400153178,1767157852767,-150.0,0.00025636,2]
[400153179,1767157852777,-150.0,0.00025636,2]
[400153180,1767157852786,-1364.0,0.00025636,2]
[400153181,1767157852795,-627.0,0.00025636,2]
[400153182,1767157852804,-2156.0,0.00025636,2]
[400153183,1767157852813,-150.0,0.00025636,2]
[400153184,1767157852822,-150.0,0.00025636,2]
[400153185,1767157852831,-416.0,0.00025636,2]
[400153186,1767157852841,-416.0,0.00025636,2]
[400153187,1767157852850,-160.0,0.00025644,12]
[400153188,1767157852859,-169.93936095,0.0002567,110]
[400153189,1767157852869,-2000.0,0.00025714,7]
[400153190,1767157852878,-1182.23,0.00025753,2]
[400153191,1767157852887,-793.64,0.00025753,2]
[400153192,1767157852896,-3532.14,0.00025753,2]
[400153193,1767157852906,-166.0,0.0002589,7]